bitfinex-derivatives/quotes_SOLF0:USTF0_20250110
["timestamp","ask_amount","ask_price","bid_price","bid_amount"]
[1736532526909,106.70771296,191.57,191.38,21.08771296]
[1736532527110,106.70771296,191.57,191.41,21.08771296]
[1736532527307,13.09861784,191.56,191.43,13.09861784]
[1736532527811,13.09861784,191.56,191.43,14.64131784]
[1736532528015,13.09861784,191.56,191.44,5.28631762]
[1736532528715,13.09861784,191.56,191.43,14.64131784]
[1736532529017,13.09861784,191.56,191.44,1.5331]
[1736532529420,85.62,191.57,191.45,5.27953929]
[1736532530118,85.62,191.57,191.44,1.5331]
[1736532530316,20.95776382,191.58,191.44,1.5331]
[1736532530516,5.232,191.69,191.45,20.95776382]
[1736532530813,20.95776382,191.64,191.53,2.6106]
[1736532531217,20.95776382,191.64,191.48,20.95776382]
[1736532531611,20.95776382,191.61,191.45,20.95776382]
[1736532531821,20.95776382,191.61,191.44,3.0556]
[1736532532008,20.95776382,191.58,191.49,5.26626428]
[1736532532415,20.95776382,191.65,191.54,2.6104]
[1736532532612,85.6,191.71,191.54,2.6104]
[1736532532813,20.95776382,191.65,191.51,5.62]
[1736532533525,20.95776382,191.65,191.51,8.2309]
[1736532533713,20.95776382,191.62,191.45,20.95776382]
[1736532533923,20.95776382,191.59,191.44,3.0556]
[1736532534621,20.95776382,191.59,191.45,5.26292351]
[1736532535019,20.95776382,191.59,191.44,3.0556]
[1736532535220,20.95776382,191.59,191.48,2.6113]
[1736532535529,20.95776382,191.5,191.27,20.95776382]
[1736532535821,20.95776382,191.42,191.31,1.5908]
[1736532536023,20.95776382,191.39,191.26,8.38975533]
[1736532536218,20.95776382,191.39,191.26,11.00395533]
[1736532536423,5.62,191.41,191.26,1.5083]
[1736532536724,36.65776382,191.52,191.26,1.5083]
[1736532536725,20.95776382,191.45,191.29,20.95776382]
[1736532537335,5.62,191.47,191.29,20.95776382]
[1736532537537,20.95776382,191.52,191.37,2.6127]
[1736532537765,20.95776382,191.52,191.35,20.95776382]
[1736532537941,91.2,191.53,191.38,20.95776382]
[1736532538225,5.62,191.53,191.41,20.95776382]
[1736532539225,5.62,191.53,191.43,2.6119]
[1736532540122,5.62,191.53,191.38,20.95776382]
[1736532540330,20.95776382,191.58,191.41,20.95776382]
[1736532540532,20.95776382,191.58,191.42,1.5421]
[1736532541023,20.95776382,191.55,191.42,1.5421]
[1736532543125,20.95776382,191.55,191.46,2.6116]
[1736532543524,20.95776382,191.55,191.43,2.6119]
[1736532543726,20.95776382,191.52,191.39,5.26596456]
[1736532543932,20.95776382,191.49,191.39,7.87836456]
[1736532544225,20.95776382,191.49,191.36,3.0991]
[1736532545124,20.95776382,191.46,191.36,1.5908]
[1736532545324,5.62,191.53,191.3,5.62]
[1736532545325,20.95776382,191.43,191.3,5.62]
[1736532545523,20.95776382,191.43,191.28,5.62]
[1736532546023,20.95776382,191.43,191.29,5.27690619]
[1736532546423,20.95776382,191.43,191.36,2.613]
[1736532547218,20.95776382,191.43,191.29,20.95776382]
[1736532547424,20.95776382,191.43,191.34,2.6132]
[1736532547821,20.95776382,191.43,191.28,5.62]
[1736532548026,20.95776382,191.46,191.29,26.23643642]
[1736532548534,20.95776382,191.46,191.3,5.2786726]
[1736532548822,20.95776382,191.46,191.31,5.2786726]
[1736532549531,20.95776382,191.46,191.34,2.6132]
[1736532549828,20.95776382,191.46,191.3,5.28130071]
[1736532550440,20.95776382,191.46,191.31,5.28130071]
[1736532550629,20.95776382,191.46,191.29,20.95776382]
[1736532550825,20.95776382,191.46,191.37,2.6128]
[1736532551530,20.95776382,191.46,191.3,5.28396735]
[1736532551824,20.95776382,191.43,191.3,5.28396735]
[1736532552229,20.95776382,191.43,191.26,28.15136382]
[1736532552629,20.95776382,191.43,191.31,2.6136]
[1736532552835,20.95776382,191.43,191.26,28.15136382]
[1736532553532,20.95776382,191.49,191.32,20.95776382]
[1736532554037,20.95776382,191.49,191.38,2.6126]
[1736532554637,20.95776382,191.49,191.33,5.28992574]
[1736532554844,20.95776382,191.52,191.35,20.95776382]
[1736532555031,20.95776382,191.55,191.38,20.95776382]
[1736532556137,20.95776382,191.55,191.45,2.6116]
[1736532556431,20.95776382,191.49,191.39,5.28346331]
[1736532556735,20.95776382,191.49,191.39,7.89596331]
[1736532556971,20.95776382,191.46,191.39,5.28346331]
[1736532557241,20.95776382,191.46,191.39,2.6124]
[1736532558534,20.95776382,191.46,191.37,2.6128]
[1736532558735,20.95776382,191.46,191.34,7.1774]
[1736532558928,20.95776382,191.46,191.34,1.5574]
[1736532559131,20.95776382,191.43,191.31,3.1716]
[1736532559643,20.95776382,191.43,191.34,2.6131]
[1736532560229,20.95776382,191.43,191.3,5.86895085]
[1736532561034,20.95776382,191.4,191.31,2.6136]
[1736532561240,20.95776382,191.4,191.3,5.86895085]
[1736532561634,20.95776382,191.37,191.26,3.1259]
[1736532561833,20.95776382,191.37,191.2,5.62]
[1736532562535,20.95776382,191.37,191.22,5.2901002]
[1736532562939,20.95776382,191.37,191.23,5.2901002]
[1736532563539,20.95776382,191.4,191.32,2.6135]
[1736532564136,20.95776382,191.4,191.34,2.6132]
[1736532564335,20.95776382,191.43,191.26,10.0401002]
[1736532564640,20.95776382,191.43,191.34,2.6131]
[1736532565050,20.95776382,191.43,191.26,4.75]
[1736532565241,20.95776382,191.4,191.31,2.6136]
[1736532565841,20.95776382,191.4,191.32,2.6135]
[1736532567836,5.62,191.45,191.35,2.613]
[1736532568036,20.95776382,191.45,191.28,26.57776382]
[1736532568342,20.95776382,191.45,191.36,2.6129]
[1736532568543,20.95776382,191.45,191.28,26.57776382]
[1736532569038,20.95776382,191.45,191.29,5.27453089]
[1736532569243,5.62,191.49,191.29,5.27453089]
[1736532569244,20.95776382,191.42,191.29,5.27453089]
[1736532569443,20.95776382,191.38,191.26,4.75]
[1736532569643,20.95776382,191.38,191.3,2.6137]
[1736532570143,20.95776382,191.38,191.26,4.75]
[1736532571346,20.95776382,191.38,191.3,2.6137]
[1736532571732,20.95776382,191.38,191.26,4.75]
[1736532572034,20.95776382,191.38,191.31,2.6136]
[1736532572636,20.95776382,191.38,191.29,2.6138]
[1736532573035,20.95776382,191.38,191.26,3.0937]
[1736532573036,20.95776382,191.35,191.21,60.5318837]
[1736532573340,20.95776382,191.35,191.21,63.7123837]
[1736532573852,20.95776382,191.35,191.27,2.6142]
[1736532574539,20.95776382,191.35,191.28,2.614]
[1736532574837,20.95776382,191.35,191.21,63.7123837]
[1736532575035,20.95776382,191.38,191.21,63.7123837]
[1736532575239,20.95776382,191.38,191.23,20.95776382]
[1736532575438,5.62,191.4,191.23,20.95776382]
[1736532575940,20.95776382,191.38,191.23,20.95776382]
[1736532576246,20.95776382,191.38,191.22,5.62]
[1736532576842,20.95776382,191.38,191.3,2.6137]
[1736532577054,20.95776382,191.38,191.22,5.62]
[1736532577280,20.95776382,191.38,191.27,2.6141]
[1736532577440,20.95776382,191.38,191.23,20.95776382]
[1736532577640,20.95776382,191.41,191.23,20.95776382]
[1736532577849,20.95776382,191.41,191.28,2.614]
[1736532578039,20.95776382,191.41,191.23,20.95776382]
[1736532579549,20.95776382,191.41,191.24,5.27238796]
[1736532579742,20.95776382,191.41,191.33,2.6133]
[1736532579948,86.21520168,191.54,191.33,5.62]
[1736532580146,86.21520168,191.54,191.35,20.95776382]
[1736532580337,20.95776382,191.53,191.4,2.6124]
[1736532580539,20.95776382,191.53,191.35,20.95776382]
[1736532581644,20.95776382,191.53,191.44,2.6118]
[1736532582046,20.95776382,191.56,191.47,2.6114]
[1736532582259,20.95776382,191.56,191.41,26.57776382]
[1736532582545,20.95776382,191.59,191.51,2.6108]
[1736532582753,20.95776382,191.62,191.47,20.95776382]
[1736532582944,86.21520168,191.67,191.47,20.95776382]
[1736532582945,20.95776382,191.65,191.47,20.95776382]
[1736532583456,20.95776382,191.62,191.47,20.95776382]
[1736532584445,20.95776382,191.62,191.5,2.6109]
[1736532584647,20.95776382,191.62,191.45,4.8642]
[1736532584838,20.95776382,191.56,191.45,4.8642]
[1736532585044,20.95776382,191.56,191.45,3.228]
[1736532585346,20.95776382,191.6,191.4,5.6]
[1736532585347,20.95776382,191.53,191.4,5.6]
[1736532585557,20.95776382,191.5,191.4,2.6124]
[1736532585743,20.95776382,191.5,191.39,1.5072]
[1736532586150,20.95776382,191.5,191.36,3.1888]
[1736532586751,20.95776382,191.44,191.33,1.5072]
[1736532587243,20.95776382,191.44,191.33,4.1204]
[1736532587444,20.95776382,191.44,191.33,1.5072]
[1736532588056,20.95776382,191.44,191.3,5.6]
[1736532588962,20.95776382,191.41,191.29,1.6182]
[1736532590057,20.95776382,191.44,191.29,1.6182]
[1736532590354,20.95776382,191.44,191.35,2.613]
[1736532590551,20.95776382,191.44,191.29,22.57596382]
[1736532591051,20.95776382,191.5,191.32,20.95776382]
[1736532591247,20.95776382,191.5,191.33,1.6318]
[1736532591445,20.95776382,191.5,191.34,5.6]
[1736532591646,20.95776382,191.5,191.43,2.612]
[1736532591860,20.95776382,191.53,191.38,20.95776382]
[1736532592055,20.95776382,191.56,191.39,3.2123]
[1736532592557,20.95776382,191.56,191.41,20.95776382]
[1736532592755,20.95776382,191.56,191.42,1.6318]
[1736532593060,20.95776382,191.56,191.42,7.2318]
[1736532593454,20.95776382,191.56,191.49,2.6111]
[1736532593665,20.95776382,191.56,191.42,7.2318]
[1736532593971,20.95776382,191.52,191.39,3.2123]
[1736532594663,20.95776382,191.52,191.41,2.6122]
[1736532594860,20.95776382,191.49,191.41,2.6122]
[1736532595065,20.95776382,191.49,191.39,3.2123]
[1736532595253,20.95776382,191.52,191.44,2.6117]
[1736532595661,20.95776382,191.52,191.39,3.2123]
[1736532595857,20.95776382,191.52,191.45,2.6117]
[1736532596456,20.95776382,191.52,191.39,3.2123]
[1736532597057,20.95776382,191.52,191.45,2.6117]
[1736532597658,20.95776382,191.52,191.39,3.2123]
[1736532597868,20.95776382,191.49,191.39,3.2123]
[1736532598363,20.95776382,191.49,191.43,2.6119]
[1736532598863,20.95776382,191.49,191.44,2.6118]
[1736532600164,20.95776382,191.49,191.42,2.612]
[1736532600369,20.95776382,191.49,191.39,1.6445]
[1736532600562,20.95776382,191.55,191.39,22.60226382]
[1736532600753,20.95776382,191.52,191.39,1.6445]
[1736532600965,85.62,191.58,191.39,1.6445]
[1736532600966,20.95776382,191.49,191.39,1.6445]
[1736532602764,20.95776382,191.49,191.41,2.6123]
[1736532603566,20.95776382,191.46,191.34,3.2437]
[1736532603758,20.95776382,191.43,191.34,1.6146]
[1736532603961,20.95776382,191.46,191.34,1.6146]
[1736532605168,20.95776382,191.49,191.34,1.6146]
[1736532605371,26.55776382,191.52,191.34,1.6146]
[1736532605675,20.95776382,191.52,191.36,20.95776382]
[1736532605874,20.95776382,191.52,191.46,2.6115]
[1736532606063,20.95776382,191.52,191.37,7.2052]
[1736532606374,106.57776382,191.58,191.42,20.95776382]
[1736532607064,20.95776382,191.55,191.39,20.95776382]
[1736532607267,20.95776382,191.52,191.38,1.5595]
[1736532607483,20.95776382,191.49,191.38,1.5595]
[1736532607868,20.95776382,191.46,191.38,1.5595]
[1736532608076,20.95776382,191.46,191.34,1.6146]
[1736532608869,20.95776382,191.46,191.38,2.6126]
[1736532609270,20.95776382,191.46,191.34,1.6146]
[1736532609271,20.95776382,191.46,191.37,2.6128]
[1736532609562,20.95776382,191.46,191.34,1.6146]
[1736532610465,20.95776382,191.46,191.41,2.6122]
[1736532610677,20.95776382,191.46,191.34,1.6146]
[1736532610971,20.95776382,191.46,191.39,2.6125]
[1736532611381,20.95776382,191.46,191.34,1.6146]
[1736532611769,20.95776382,191.46,191.41,2.6122]
[1736532612270,20.95776382,191.46,191.37,2.6127]
[1736532612579,20.95776382,191.49,191.34,1.6146]
[1736532612772,20.95776382,191.49,191.38,2.6126]
[1736532612968,20.95776382,191.49,191.34,1.6146]
[1736532613471,20.95776382,191.49,191.42,2.612]
[1736532613678,20.95776382,191.49,191.34,1.6146]
[1736532613873,20.95776382,191.49,191.38,2.6126]
[1736532614073,20.95776382,191.49,191.34,1.6146]
[1736532614677,20.95776382,191.55,191.39,20.95776382]
[1736532614887,5.6,191.56,191.42,20.95776382]
[1736532615066,5.6,191.56,191.43,3.1878]
[1736532615465,106.57776382,191.58,191.47,2.6114]
[1736532615679,106.57776382,191.58,191.43,3.1878]
[1736532616072,20.95776382,191.64,191.48,20.95776382]
[1736532616588,20.95776382,191.64,191.57,2.6101]
[1736532616775,20.95776382,191.64,191.49,1.5497]
[1736532617180,5.6,191.67,191.49,1.5497]
[1736532617181,20.95776382,191.67,191.59,2.6098]
[1736532618175,20.95776382,191.64,191.49,1.5497]
[1736532619286,20.95776382,191.67,191.51,20.95776382]
[1736532619479,20.95776382,191.7,191.54,20.95776382]
[1736532619687,20.95776382,191.67,191.55,3.2907]
[1736532620581,20.95776382,191.7,191.55,3.2907]
[1736532621002,20.95776382,191.7,191.61,2.6095]
[1736532621382,20.95776382,191.7,191.58,2.6099]
[1736532621580,20.95776382,191.67,191.58,2.6099]
[1736532622381,20.95776382,191.64,191.49,1.5497]
[1736532622582,20.95776382,191.64,191.49,4.6355]
[1736532623185,20.95776382,191.64,191.53,0.21282]
[1736532623598,20.95776382,191.64,191.55,2.6103]
[1736532623782,20.95776382,191.64,191.53,0.21282]
[1736532624182,20.95776382,191.67,191.53,0.21282]
[1736532624611,20.95776382,191.7,191.63,2.6092]
[1736532624884,20.95776382,191.7,191.54,20.95776382]
[1736532625087,20.95776382,191.7,191.59,2.6097]
[1736532625385,20.95776382,191.7,191.54,20.95776382]
[1736532625591,20.95776382,191.67,191.57,2.6101]
[1736532625792,20.95776382,191.67,191.53,5.81282]
[1736532626385,20.95776382,191.64,191.53,5.81282]
[1736532626584,20.95776382,191.64,191.53,0.21282]
[1736532626889,20.95776382,191.61,191.53,2.82342]
[1736532627081,20.95776382,191.61,191.53,0.21282]
[1736532627279,20.95776382,191.58,191.53,0.21282]
[1736532628387,20.95776382,191.55,191.53,0.21282]
[1736532629188,195.0,191.69,191.56,2.6102]
[1736532629500,195.0,191.69,191.53,0.21282]
[1736532629501,20.95776382,191.67,191.53,0.21282]
[1736532630591,20.95776382,191.64,191.53,0.21282]
[1736532630892,20.95776382,191.61,191.53,0.21282]
[1736532632581,20.95776382,191.61,191.57,2.61]
[1736532633594,26.55776382,191.64,191.58,2.6099]
[1736532634200,26.55776382,191.64,191.57,2.6101]
[1736532634796,26.55776382,191.64,191.58,2.6099]
[1736532635000,26.55776382,191.64,191.53,0.21282]
[1736532635996,26.55776382,191.64,191.55,2.6103]
[1736532636396,20.95776382,191.58,191.46,1.5788]
[1736532636797,20.95776382,191.55,191.45,1.5259]
[1736532637390,20.95776382,191.55,191.48,2.6112]
[1736532637594,20.95776382,191.58,191.45,1.5259]
[1736532637796,20.95776382,191.55,191.45,1.5259]
[1736532638497,20.95776382,191.58,191.45,1.5259]
[1736532638891,20.95776382,191.61,191.45,28.08366382]
[1736532639095,20.95776382,191.7,191.45,28.08366382]
[1736532639096,26.55776382,191.67,191.48,20.95776382]
[1736532639296,20.95776382,191.67,191.51,20.95776382]
[1736532639498,20.95776382,191.67,191.62,2.6094]
[1736532639696,20.95776382,191.67,191.52,1.6522]
[1736532639999,20.95776382,191.67,191.62,2.6093]
[1736532640195,26.55776382,191.7,191.52,1.6522]
[1736532640395,26.55776382,191.7,191.53,5.6]
[1736532640600,26.55776382,191.7,191.54,1.5908]
[1736532641798,26.55776382,191.7,191.54,22.54856382]
[1736532642197,26.55776382,191.7,191.59,2.6097]
[1736532642393,20.95776382,191.67,191.54,1.5908]
[1736532642788,20.95776382,191.64,191.48,20.95776382]
[1736532643087,20.95776382,191.64,191.48,1.502]
[1736532644299,20.95776382,191.64,191.55,2.6102]
[1736532644701,20.95776382,191.64,191.48,1.502]
[1736532645403,34.03451351,191.64,191.48,35.53651351]
[1736532646299,34.03451351,191.64,191.56,2.6102]
[1736532646602,34.03451351,191.64,191.48,35.53651351]
[1736532646903,34.03451351,191.67,191.51,34.03451351]
[1736532647091,5.58,191.68,191.54,34.03451351]
[1736532647704,5.58,191.68,191.54,35.56241351]
[1736532648404,34.03451351,191.7,191.58,2.6099]
[1736532648594,34.03451351,191.7,191.54,35.56241351]
[1736532649605,34.03451351,191.7,191.6,2.6097]
[1736532649812,34.03451351,191.7,191.54,35.56241351]
[1736532650100,34.03451351,191.7,191.64,2.609]
[1736532650302,34.03451351,191.67,191.54,1.5279]
[1736532650501,34.03451351,191.7,191.54,1.5279]
[1736532650904,34.03451351,191.67,191.53,5.58]
[1736532651405,34.03451351,191.67,191.59,2.6098]
[1736532651710,34.03451351,191.67,191.53,5.58]
[1736532651902,39.61451351,191.67,191.57,2.61]
[1736532652702,39.61451351,191.67,191.58,2.6099]
[1736532653504,39.61451351,191.67,191.53,5.58]
[1736532653709,5.58,191.67,191.53,5.58]
[1736532654814,5.58,191.67,191.62,2.6093]
[1736532655003,34.03451351,191.7,191.54,34.03451351]
[1736532655309,34.03451351,191.7,191.63,2.6092]
[1736532655706,34.03451351,191.7,191.54,34.03451351]
[1736532656006,34.03451351,191.73,191.54,34.03451351]
[1736532656405,34.03451351,191.73,191.6,2.6096]
[1736532656609,34.03451351,191.73,191.55,5.30155602]
[1736532656836,34.03451351,191.73,191.57,34.03451351]
[1736532657005,34.03451351,191.73,191.58,3.1576]
[1736532657262,34.03451351,191.7,191.58,4.7657]
[1736532658411,34.03451351,191.7,191.53,5.58]
[1736532658816,34.03451351,191.7,191.61,2.6095]
[1736532659013,34.03451351,191.7,191.54,5.31111463]
[1736532659519,34.03451351,191.7,191.55,5.31111463]
[1736532659714,34.03451351,191.7,191.56,5.31111463]
[1736532659912,34.03451351,191.7,191.62,2.6093]
[1736532660329,34.03451351,191.7,191.53,5.58]
[1736532660617,34.03451351,191.7,191.62,2.6093]
[1736532660815,34.03451351,191.7,191.53,5.58]
[1736532661219,34.03451351,191.7,191.63,2.6091]
[1736532661421,34.03451351,191.7,191.54,5.32114088]
[1736532661619,34.03451351,191.67,191.54,5.32114088]
[1736532661815,34.03451351,191.67,191.55,5.32114088]
[1736532662428,34.03451351,191.67,191.63,2.6092]
[1736532662627,34.03451351,191.7,191.56,5.32114088]
[1736532662827,205.78971519,191.8,191.56,5.32114088]
[1736532662828,34.03451351,191.73,191.68,2.6086]
[1736532663020,34.03451351,191.76,191.58,1.5038]
[1736532663417,171.75520168,191.8,191.63,2.6092]
[1736532663418,34.03451351,191.7,191.63,2.6092]
[1736532663722,34.03451351,191.7,191.59,5.58]
[1736532664017,34.03451351,191.7,191.6,2.6096]
[1736532664318,34.03451351,191.7,191.59,5.58]
[1736532664516,135.27451351,191.8,191.6,2.6096]
[1736532664517,34.03451351,191.67,191.6,2.6096]
[1736532664723,34.03451351,191.67,191.54,1.5038]
[1736532664923,34.03451351,191.67,191.57,2.61]
[1736532665120,34.03451351,191.67,191.54,1.5038]
[1736532665533,34.03451351,191.67,191.57,2.61]
[1736532665722,34.03451351,191.58,191.4,32.69123641]
[1736532666024,34.03451351,191.56,191.43,3.2418]
[1736532666431,34.03451351,191.56,191.44,5.34217235]
[1736532666920,33.82346351,191.53,191.44,5.34217235]
[1736532667116,33.82346351,191.53,191.45,5.34217235]
[1736532667323,34.03451351,191.56,191.45,5.34217235]
[1736532667619,20.96041226,191.57,191.41,1.5038]
[1736532667841,20.96041226,191.6,191.43,20.96041226]
[1736532668020,20.96041226,191.63,191.49,20.96041226]
[1736532668224,20.96041226,191.63,191.54,2.6104]
[1736532668425,20.96041226,191.63,191.5,3.2418]
[1736532668927,5.58,191.65,191.5,3.2418]
[1736532669332,5.58,191.65,191.51,5.33334265]
[1736532669728,20.96041226,191.66,191.51,5.33334265]
[1736532670036,20.96041226,191.66,191.52,6.93094265]
[1736532670231,20.96041226,191.69,191.52,27.89135491]
[1736532670426,20.96041226,191.69,191.6,2.6096]
[1736532670828,20.96041226,191.69,191.55,5.58]
[1736532671027,20.96041226,191.72,191.55,26.54041226]
[1736532671627,20.96041226,191.72,191.64,2.6091]
[1736532673536,20.96041226,191.72,191.65,2.609]
[1736532673727,20.96041226,191.75,191.58,20.96041226]
[1736532673933,20.96041226,191.75,191.59,1.5265]
[1736532674235,20.96041226,191.75,191.59,6.85532999]
[1736532674439,20.96041226,191.75,191.6,3.1745]
[1736532674623,20.96041226,191.75,191.69,2.6084]
[1736532674832,85.54,191.8,191.64,20.96041226]
[1736532675144,85.54,191.8,191.67,20.96041226]
[1736532675636,20.96041226,191.82,191.67,20.96041226]
[1736532675838,20.96041226,191.82,191.73,2.6079]
[1736532676139,20.96041226,191.82,191.68,1.6439]
[1736532676335,20.96041226,191.82,191.68,3.206]
[1736532676530,20.96041226,191.85,191.75,2.6076]
[1736532677138,20.96041226,191.85,191.76,2.6074]
[1736532677436,20.96041226,191.85,191.71,5.58]
[1736532677437,86.21520168,191.93,191.74,20.96041226]
[1736532677766,86.21520168,191.93,191.84,2.6064]
[1736532678035,86.21520168,191.93,191.82,2.6066]
[1736532678231,86.21520168,191.93,191.8,26.54041226]
[1736532678434,20.96041226,191.96,191.8,26.54041226]
[1736532678939,20.96041226,191.93,191.8,5.58]
[1736532679438,20.96041226,191.93,191.81,2.6068]
[1736532679636,20.96041226,191.9,191.76,1.5621]
[1736532680035,20.96041226,191.87,191.76,2.6074]
[1736532680238,20.96041226,191.87,191.75,1.5609]
[1736532680535,20.96041226,191.87,191.71,20.96041226]
[1736532680743,20.96041226,191.84,191.7,7.2221]
[1736532681439,33.96163037,191.84,191.73,2.6079]
[1736532681649,33.96163037,191.84,191.7,7.2221]
[1736532681650,33.96163037,191.84,191.7,5.58]
[1736532681950,33.96163037,191.84,191.74,2.6077]
[1736532682148,33.96163037,191.84,191.7,5.58]
[1736532682764,33.96163037,191.84,191.69,1.5076]
[1736532682942,33.96163037,191.81,191.69,1.5076]
[1736532683450,33.96163037,191.75,191.61,1.62]
[1736532683646,33.96163037,191.72,191.57,33.96163037]
[1736532683839,33.96163037,191.69,191.54,41.16163037]
[1736532684044,33.96163037,191.69,191.54,35.58163037]
[1736532684249,33.96163037,191.66,191.54,1.62]
[1736532684456,33.96163037,191.66,191.58,5.29062689]
[1736532684748,33.96163037,191.63,191.58,5.29062689]
[1736532684944,33.96163037,191.63,191.48,1.6614]
[1736532685138,33.96163037,191.6,191.48,1.6614]
[1736532685744,33.96163037,191.6,191.5,2.611]
[1736532685953,33.96163037,191.54,191.41,1.6614]
[1736532686448,33.96163037,191.54,191.42,5.30722521]
[1736532687256,33.96163037,191.54,191.45,2.6117]
[1736532687655,33.96163037,191.54,191.46,2.6116]
[1736532687952,33.96163037,191.51,191.37,3.0401]
[1736532688151,33.96163037,191.51,191.39,2.6125]
[1736532688446,5.58,191.54,191.37,3.0401]
[1736532688447,33.96163037,191.48,191.38,5.30949322]
[1736532688647,33.96163037,191.48,191.39,2.6125]
[1736532688951,33.96163037,191.48,191.38,5.30949322]
[1736532689449,33.96163037,191.48,191.37,1.5429]
[1736532689450,33.96163037,191.51,191.37,1.5429]
[1736532690651,33.96163037,191.51,191.39,2.6125]
[1736532690955,33.96163037,191.48,191.37,1.5429]
[1736532691347,33.96163037,191.48,191.38,2.6126]
[1736532692052,33.96163037,191.48,191.4,2.6124]
[1736532692360,39.54163037,191.54,191.39,33.96163037]
[1736532692555,5.58,191.54,191.39,33.96163037]
[1736532692749,5.58,191.54,191.44,2.6117]
[1736532692959,39.54163037,191.54,191.39,33.96163037]
[1736532693154,39.54163037,191.54,191.38,1.5878]
[1736532693155,33.96163037,191.51,191.38,1.5878]
[1736532694355,33.96163037,191.51,191.41,2.6122]
[1736532694555,33.96163037,191.51,191.37,1.5429]
[1736532695558,33.96163037,191.51,191.4,2.6124]
[1736532695751,39.54163037,191.54,191.38,33.96163037]
[1736532695959,15.7,191.73,191.41,33.96163037]
[1736532695960,33.96163037,191.57,191.41,33.96163037]
[1736532696160,33.96163037,191.57,191.45,2.6116]
[1736532696353,33.96163037,191.54,191.38,39.54163037]
[1736532697455,39.54163037,191.6,191.44,33.96163037]
[1736532697867,33.96163037,191.6,191.5,2.611]
[1736532698152,33.96163037,191.6,191.44,33.96163037]
[1736532698554,33.96163037,191.6,191.53,2.6106]
[1736532698760,5.58,191.62,191.47,33.96163037]
[1736532699352,5.58,191.62,191.51,2.6108]
[1736532699555,5.58,191.62,191.47,33.96163037]
[1736532700258,33.96163037,191.66,191.5,33.96163037]
[1736532700457,39.54163037,191.69,191.53,33.96163037]
[1736532700661,33.96163037,191.69,191.53,33.96163037]
[1736532700863,33.96163037,191.72,191.56,33.96163037]
[1736532701050,33.96163037,191.72,191.6,2.6096]
[1736532701266,33.96163037,191.72,191.56,33.96163037]
[1736532701964,33.96163037,191.72,191.61,2.6095]
[1736532702174,33.96163037,191.72,191.56,33.96163037]
[1736532702358,5.58,191.73,191.59,33.96163037]
[1736532702560,125.02163037,191.75,191.59,33.96163037]
[1736532702860,85.48,191.75,191.59,33.96163037]
[1736532703057,85.48,191.75,191.6,3.1153]
[1736532703463,85.48,191.75,191.66,2.6089]
[1736532703657,39.54163037,191.78,191.62,33.96163037]
[1736532703960,39.54163037,191.78,191.69,2.6084]
[1736532704163,39.54163037,191.81,191.65,33.96163037]
[1736532704962,39.54163037,191.81,191.72,2.608]
[1736532705462,5.58,191.81,191.68,33.96163037]
[1736532705958,33.96163037,191.87,191.68,33.96163037]
[1736532706172,5.58,191.86,191.71,33.96163037]
[1736532706366,33.96163037,191.87,191.71,33.96163037]
[1736532706566,39.54163037,191.87,191.71,33.96163037]
[1736532706869,33.96163037,191.84,191.68,33.96163037]
[1736532707682,33.96163037,191.81,191.66,1.5051]
[1736532707872,33.96163037,191.81,191.68,2.6085]
[1736532709077,33.96163037,191.81,191.53,5.2212]
[1736532709078,33.96163037,191.75,191.59,33.96163037]
[1736532709273,5.58,191.77,191.61,1.6448]
[1736532710175,5.58,191.77,191.67,2.6086]
[1736532710373,33.96163037,191.78,191.62,33.96163037]
[1736532710577,39.54163037,191.78,191.62,33.96163037]
[1736532711084,39.54163037,191.78,191.61,1.6448]
[1736532711277,33.96163037,191.75,191.61,1.6448]
[1736532712183,33.96163037,191.75,191.65,2.609]
[1736532712472,33.96163037,191.75,191.61,1.6448]
[1736532712673,33.96163037,191.72,191.61,2.6094]
[1736532713480,33.96163037,191.72,191.62,2.6094]
[1736532714478,33.96163037,191.72,191.63,2.6093]
[1736532714677,33.96163037,191.75,191.59,33.96163037]
[1736532715380,33.96163037,191.81,191.65,33.96163037]
[1736532715575,33.96163037,191.81,191.72,2.6079]
[1736532716181,33.96163037,191.81,191.65,33.96163037]
[1736532716374,33.96163037,191.81,191.63,1.6439]
[1736532716572,5.58,191.82,191.66,33.96163037]
[1736532716776,5.58,191.82,191.69,33.96163037]
[1736532717184,5.58,191.82,191.74,2.6077]
[1736532717581,5.58,191.82,191.66,33.96163037]